Cogmind - Beta 12 @@@ ROGUE MODE // 2023.11.14 @ 18:51:26 Player: monistgf Result: Destroyed by G-67 Veteran with Field Laser Performance ------------- Evolutions (7) 3500 Regions Visited (22) 4400 Robots Destroyed (226) 1130 Value Destroyed (11100) 11100 Prototype IDs (45) 900 Alien Tech Used (6) 1200 Bonus (6924) 6924 TOTAL SCORE: 29154 Bonus ------- High Alert Combat Kills 580 Follower Combat Kills 1983 Network Hubs Disabled 600 Met Data Miner 300 Met Zhirov 300 Built Enhanced Grunts 300 A7 Reached Mainframe 300 Used Core Reset Matrix 3000 Friendly Fire -439 Cogmind --------- Core Integrity 0/1300 Matter 118/300 Energy 130/150 System Corruption 2% Temperature Cool (12) Movement Rolling (110) Ox1 Location -3/Quarantine Parts ------- > --- POWER (1) -------- Micro Antimatter Reactor > --- PROPULSION (4) --- High-density Centrium Wheel High-density Centrium Wheel > --- UTILITY (13) ----- Advanced Heat Sink High-capacity Storage Unit Enhanced Optical Array Advanced Signal Interpreter Advanced Targeting Computer Experimental Targeting Computer Advanced Target Analyzer Advanced Target Analyzer Experimental Target Analyzer > --- WEAPON (3) ------- Compact HERF Cannon Railgun Compact Mass Driver > --- INVENTORY (20) --- Advanced Heat Sink Advanced Heat Sink High-capacity Storage Unit High-capacity Matter Pod (200) Long-range Sensor Array Long-range Sensor Array Improved Particle Charger Advanced Transmission Jammer Terrabomb Terrabomb Gamma Rifle Long-range Missile Launcher Sigix Terminator (1) Shock Maul Peak State ------------ > --- POWER ------------ Micro Antimatter Reactor > --- PROPULSION ------- Medium Treads Advanced Heavy Treads High-density Centrium Wheel > --- UTILITY ---------- Experimental Cooling System High-capacity Storage Unit Advanced Energy Well Enhanced Optical Array Advanced Signal Interpreter Advanced Targeting Computer Experimental Targeting Computer Advanced Target Analyzer Advanced Target Analyzer Experimental Target Analyzer Advanced Transmission Jammer Improved Hacking Suite Advanced Dynamic Insulation System > --- WEAPON ----------- Gamma Rifle Sigix Terminator > --- INVENTORY -------- Light Antimatter Reactor High-density Centrium Wheel Experimental Cooling System High-capacity Storage Unit High-capacity Matter Pod Long-range Sensor Array Long-range Sensor Array Improved Recalibrator Transdimensional Reconstructor Terrabomb Terrabomb Plasma Rifle Cooled Phase Gun Quantum Rifle Railgun Railgun Compact Mass Driver Long-range Missile Launcher Shock Maul [Rating: 166] Favorites ----------- Power Neutrino Core Engine Heavy Deuterium Engine Power Core Neutrino Core Reactor Heavy Antimatter Reactor Propulsion Advanced Myomer Leg Treads Advanced Heavy Treads Leg Advanced Myomer Leg Wheel Wheel Hover Unit Improved Antigrav System Utility High-capacity Storage Unit Device Advanced Sensor Array Storage High-capacity Storage Unit Processor Advanced Targeting Computer Hackware Improved Hacking Suite Protection Improved Medium Armor Plating Weapon Advanced Plasma Cannon Energy Gun Phase Gun Energy Cannon Advanced Plasma Cannon Ballistic Gun Flak Gun Ballistic Cannon Compact Mass Driver Launcher Rocket Launcher Special Weapon Mining Laser Impact Weapon Makeshift Hammer Slashing Weapon Scythe Build | -11 -10 -9 -9 -8 -7 -7 -7 -7 -6 -6 -6 -6 -6 -6 -5 -4 -4 -4 -4 -3 -3 -3 ------- Run | Jun Mat Mat Min Mat Fac Low Low Dat Pro Fac Ext Cet Arc Hub Fac Fac Upp Upp Zhi Pro Res Qua Slots Evolved 14 | . . 2 . 2 2 . . . . 2 . . . . 2 2 . . . . 2 . Power . | . . . . . . . . . . . . . . . . . . . . . . . Propulsion 2 | . . . . . 1 . . . . 1 . . . . . . . . . . . . Utility 11 | . . 1 . 2 1 . . . . 1 . . . . 2 2 . . . . 2 . Weapon 1 | . . 1 . . . . . . . . . . . . . . . . . . . . Parts Attached 359 | . 4 14 9 11 28 5 4 . 19 7 17 10 4 10 42 28 3 1 13 3 35 92 Power 26 | . . 1 2 1 4 . . . 1 . 3 . 1 . 2 1 . . 1 . 1 8 Engine 9 | . . 1 2 1 4 . . . . . 1 . . . . . . . . . . . Core 6 | . . . . . . . . . . . 2 . . . 2 1 . . . . 1 . Reactor 11 | . . . . . . . . . 1 . . . 1 . . . . . 1 . . 8 Propulsion 62 | . 2 3 2 2 4 . . . 9 4 . . 2 1 4 5 1 . 3 . 2 18 Treads 7 | . . . . . . . . . 2 . . . . . . . . . . . . 5 Leg 25 | . . . . . . . . . 2 4 . . 2 1 4 5 1 . 3 . 2 1 Wheel 23 | . 2 3 2 2 4 . . . 5 . . . . . . . . . . . . 5 Hover 7 | . . . . . . . . . . . . . . . . . . . . . . 7 Flight . | . . . . . . . . . . . . . . . . . . . . . . . Utility 139 | . 2 2 . 3 7 2 . . 5 3 4 2 1 5 23 16 2 1 5 1 19 36 Device 94 | . 1 1 . 1 5 2 . . 3 2 2 1 1 4 15 9 2 1 3 . 13 28 Storage 4 | . 1 1 . . . . . . . . . . . . 1 . . . 1 . . . Processor 21 | . . . . 2 2 . . . . 1 . . . . 1 4 . . . . 4 7 Hackware 5 | . . . . . . . . . . . . . . 1 3 1 . . . . . . Protection 15 | . . . . . . . . . 2 . 2 1 . . 3 2 . . 1 1 2 1 Artifact . | . . . . . . . . . . . . . . . . . . . . . . . Weapon 132 | . . 8 5 5 13 3 4 . 4 . 10 8 . 4 13 6 . . 4 2 13 30 Energy Gun 27 | . . . . . . . . . . . 2 1 . . 5 2 . . 1 . 4 12 Energy Cannon 22 | . . . . . . . . . 1 . 3 3 . 2 4 1 . . 1 . 2 5 Ballistic Gun 52 | . . 8 3 4 8 2 2 . 2 . 5 3 . . 3 3 . . 1 1 3 4 Ballistic Cannon 8 | . . . . . . . . . . . . . . . . . . . . . 2 6 Launcher 8 | . . . 2 . 1 1 1 . . . . . . . . . . . . 1 1 1 Special Weapon 2 | . . . . 1 1 . . . . . . . . . . . . . . . . . Impact Weapon 9 | . . . . . . . 1 . 1 . . 1 . 2 1 . . . 1 . 1 1 Slashing Weapon 4 | . . . . . 3 . . . . . . . . . . . . . . . . 1 Piercing Weapon . | . . . . . . . . . . . . . . . . . . . . . . . Special Melee Weapon . | . . . . . . . . . . . . . . . . . . . . . . . Unidentified Prototypes 29 | . . 1 . 1 1 . . . 3 . . 3 . 1 . 3 . . 4 . 3 9 Parts Lost 90 | . . 2 3 2 2 1 . . 10 . 5 . . 1 11 6 . . . 3 7 37 Power 9 | . . 1 . . . . . . . . 1 . . . 1 1 . . . . 1 4 Propulsion 23 | . . . 2 2 2 . . . 4 . . . . . 2 1 . . . . . 10 Utility 32 | . . . . . . 1 . . 3 . 3 . . . 5 2 . . . 3 5 10 Weapon 26 | . . 1 1 . . . . . 3 . 1 . . 1 3 2 . . . . 1 13 Highest Loss Streak 12 | . . 1 1 1 1 1 . . 4 . 2 . . 1 4 3 . . . 2 4 12 To Critical Strikes . | . . . . . . . . . . . . . . . . . . . . . . . Average Slot Usage (%) 97 | . 93 96 99 96 99 99 100 100 98 99 99 100 100 100 99 96 100 100 91 92 92 94 Engine 2 | . 14 10 11 9 6 7 7 7 5 . . . . . . . . . . . . . Core 1 | . . . . . . . . . . . 4 6 . . 3 5 5 5 3 . 1 . Reactor 2 | . . . . . . . . . 1 6 1 . 5 6 1 . . . 1 5 2 3 Leg 13 | . 9 . . . . . . . 2 12 26 26 26 26 23 20 21 21 21 21 19 2 Wheel 6 | . 18 22 21 18 22 23 23 23 18 8 . . . . . . . . . . . 2 Device 15 | . 7 19 22 18 16 19 23 23 20 13 17 13 13 10 10 14 15 15 13 10 18 12 Storage 7 | . 14 11 11 9 7 7 7 7 7 6 6 6 6 6 5 5 5 5 6 10 9 8 Processor 17 | . . . . 15 21 17 15 15 15 19 20 20 20 20 16 16 21 21 18 11 15 32 Hackware 4 | . . . . . . . . . . . . . . 1 10 12 10 10 10 6 4 3 Protection 3 | . . . . . . . . . 1 6 2 6 6 6 5 3 5 5 6 9 5 . Energy Gun 3 | . . . . . . . . . . . . 5 6 6 4 3 5 5 2 5 5 3 Energy Cannon 2 | . . . . . . . . . . . . 3 6 5 4 5 5 5 2 5 3 2 Ballistic Gun 11 | . 28 33 32 25 20 22 22 23 21 13 18 6 6 6 4 6 5 5 2 4 2 2 Naked Turns . | . . . . . . . . . . . . . . . . . . . . . . . Heaviest Build 123 | 12 28 56 58 61 66 68 68 68 84 79 78 86 86 86 86 87 87 87 99 112 123 104 Greatest Support 135 | 20 20 20 20 26 38 32 32 32 56 88 88 88 88 92 100 102 108 108 115 115 120 135 Greatest Overweight (x) 8 | . 1 2 2 3 2 2 2 2 8 7 . . . . . . . . . . 1 2 Average Overweight (x) . | . . 1 2 2 1 2 2 2 1 2 . . . . . . . . . . . . Largest Inventory Capacity 20 | . 15 20 20 20 20 20 20 20 20 20 20 20 20 20 20 20 20 20 20 20 20 20 Average Capacity 19 | . 12 16 20 20 20 20 20 20 20 20 20 20 20 20 20 20 20 20 20 20 20 20 Most Carried 20 | . 9 20 20 19 20 20 20 20 20 20 20 20 20 20 20 20 20 20 20 20 20 20 Average Carried 19 | . 7 12 17 17 18 19 19 20 19 19 19 19 19 19 19 19 19 19 19 20 19 19 Final Capacity 20 | 8 15 20 20 20 20 20 20 20 20 20 20 20 20 20 20 20 20 20 20 20 20 20 Final Carried 20 | 6 9 20 18 19 20 20 20 20 20 20 20 20 20 20 20 20 20 20 20 20 20 15 Class Distribution -------------------- 27% | Scavenger-Skirmisher 18% | Skirmisher 14% | Scavenger-Mutant 10% | Scavenger-Gunner 9% | Gunner 4% | Mutant 3% | Scavenger-Tank Dominant Class ---------------- Mutant | -10/Materials Skirmisher | -9/Materials Skirmisher | -9/Mines Gunner | -8/Materials Gunner | -7/Factory Skirmisher | -7/Lower Caves Skirmisher | -7/Lower Caves Skirmisher | -7/Data Miner Skirmisher | -6/Proximity Caves Scavenger-Assassin | -6/Factory Scavenger-Skirmisher | -6/Extension Scavenger-Tank | -6/Cetus Scavenger-Mutant | -6/Archives Scavenger-Skirmisher | -6/Hub_04(d) Scavenger-Skirmisher | -5/Factory Scavenger-Skirmisher | -4/Factory Scavenger-Skirmisher | -4/Upper Caves Scavenger-Skirmisher | -4/Upper Caves Scavenger-Skirmisher | -4/Zhirov Scavenger-Mutant | -3/Proximity Caves Skirmisher | -3/Research Scavenger-Gunner | -3/Quarantine Resources | -11 -10 -9 -9 -8 -7 -7 -7 -7 -6 -6 -6 -6 -6 -6 -5 -4 -4 -4 -4 -3 -3 -3 ----------- Run | Jun Mat Mat Min Mat Fac Low Low Dat Pro Fac Ext Cet Arc Hub Fac Fac Upp Upp Zhi Pro Res Qua Matter Collected 8579 | 200 90 658 297 309 337 278 91 . 574 23 755 98 224 114 563 615 85 10 110 178 545 2425 Remotely . | . . . . . . . . . . . . . . . . . . . . . . . Salvage Created 11964 | . 175 764 454 499 368 32 104 . 739 23 606 242 366 282 909 1499 176 . 398 356 1436 2536 Parts 568 | . 7 45 27 30 15 1 9 . 29 3 24 14 34 24 40 57 10 . 1 17 61 120 Haulers Intercepted 11 | . . 2 . 2 1 . . . . . . . . . 1 3 . . . . 2 . Recyclers Shooed 7 | . . . . . . . . . . . 1 . . . 1 3 . . . . 1 1 Parts Field Recycled . | . . . . . . . . . . . . . . . . . . . . . . . Retrieved Matter . | . . . . . . . . . . . . . . . . . . . . . . . Parts Self-Destructed 60 | . . . . . . 1 11 . 22 . . . . . . . 10 . . 16 . . Prevented 1 | . . . . . . . . . . . . . . . . . . . 1 . . . Kills | -11 -10 -9 -9 -8 -7 -7 -7 -7 -6 -6 -6 -6 -6 -6 -5 -4 -4 -4 -4 -3 -3 -3 ------- Run | Jun Mat Mat Min Mat Fac Low Low Dat Pro Fac Ext Cet Arc Hub Fac Fac Upp Upp Zhi Pro Res Qua Combat Hostiles Destroyed 179 | . 4 12 13 10 9 3 4 . 11 . 8 4 1 4 12 14 5 . . 8 23 34 Guns 118 | . 4 12 11 10 5 . 4 . 11 . 8 1 . 3 6 6 4 . . 4 15 14 Cannons 36 | . . . . . . . . . . . . 2 1 1 3 7 1 . . . 1 20 AOE 19 | . . . 2 . 4 3 . . . . . 1 . . 2 . . . . 3 4 . Classes Destroyed 16 | . 1 5 2 2 1 . . . 1 2 . . . . 1 . . . . . . 1 Worker 4 | . . 1 . . 1 . . . . . . . . . . . . . . . . 2 Builder 3 | . . 1 . 1 . . . . . . . . . . . . . . . . . 1 Hauler 11 | . . 2 . 2 1 . . . . . . . . . 1 3 . . . . 2 . Recycler 7 | . . 1 . . . . . . . . 1 . . . . 1 . . . . . 4 Operator 13 | . . . . . . . . . . 1 1 . 9 . 1 . . . . . . 1 Drone 3 | . . . . . . . . . 1 . . . . . . . . . . 2 . . Watcher 8 | . . . . . . . . . . 1 1 1 . 2 1 2 . . . . . . Swarmer 35 | . . . 3 3 4 3 3 . 4 . . . . . . . 3 . . . 8 4 Grunt 56 | . 4 9 9 3 2 . . . 3 . 3 . . 1 1 6 . . . 3 . 12 Brawler 4 | . . . . 1 . . . . 1 . . . . . . . . . . 1 . 1 Duelist 4 | . . . 1 . . . . . . . . . . . 2 1 . . . . . . Sentry 24 | . . 3 . 2 2 . . . 1 . 5 . 1 1 3 2 . . . . 1 3 Specialist 3 | . . . . . . . . . . . . . . . 2 . . . . . . 1 Hunter 5 | . . . . 1 . . . . . . . . . 1 . 2 . . . . 1 . Programmer 41 | . . . . . 1 . 1 . 1 . . 1 . 1 4 3 2 . . 2 13 12 Cetus Guard 3 | . . . . . . . . . . . . 3 . . . . . . . . . . Enhanced Grunt 1 | . . . . . . . . . 1 . . . . . . . . . . . . . Alpha 7 1 | . . . . . . . . . . . . . . . . . . . . . . 1 Best Kill Streak 9 | . 4 9 6 3 5 3 3 . 4 1 2 4 2 2 3 7 5 . . 3 7 6 Combat Bots Only 7 | . 4 5 6 3 4 3 3 . 4 . 2 3 1 2 3 6 5 . . 3 7 5 Max Kills in Single Turn 3 | . 1 3 2 3 3 2 1 . 1 1 1 2 1 1 2 1 2 . . 3 2 2 Gunslinging 2 | . . 2 1 1 . . . . . . . . . . . . . . . . . . Exploded 3 | . . . 2 . 2 2 . . . . . 1 . . 1 . . . . 3 2 . Melee . | . . . . . . . . . . . . . . . . . . . . . . . Uniques/NPCs Destroyed . | . . . . . . . . . . . . . . . . . . . . . . . Combat | -11 -10 -9 -9 -8 -7 -7 -7 -7 -6 -6 -6 -6 -6 -6 -5 -4 -4 -4 -4 -3 -3 -3 -------- Run | Jun Mat Mat Min Mat Fac Low Low Dat Pro Fac Ext Cet Arc Hub Fac Fac Upp Upp Zhi Pro Res Qua Damage Taken 20063 | . 101 483 645 398 532 71 171 . 1044 142 1123 155 117 697 1772 1605 238 . . 1026 2774 6969 Core 2717 | . 22 86 52 47 116 . 82 . 119 16 123 27 . 121 169 171 79 . . 201 395 891 Absorbed by Shields 148 | . . . . . . . . . . . 100 . . . . . . . . . . 48 Reduced by Siege Mode 69 | . . . . . . . . . . . . . . . . . . . . . . 69 Redirected to Shielding 46 | . . . . . . . . . . . . . . . . 46 . . . . . . Regen/Repaired (Parts) 446 | . . . . . . . . . . . . . . . 304 . . . . . . 142 Core Remaining (%) 76 | 100 91 . 65 91 . . . . 54 . . . . 66 83 . . . . 60 . . Volleys Fired 784 | . 12 34 23 33 29 2 13 . 28 7 55 10 34 14 62 43 17 . . 138 93 137 Largest 3 | . 2 3 3 3 3 1 3 . 3 2 3 3 3 3 3 3 3 . . 3 3 3 Hottest 262 | . 40 66 69 100 100 33 81 . 141 56 103 205 205 205 208 221 221 . . 221 227 262 Shots Fired 1780 | . 24 102 67 79 71 2 27 . 76 14 140 26 68 40 145 123 27 . . 166 220 363 Gun 1203 | . 24 102 65 69 63 . 21 . 73 14 128 17 64 26 87 80 16 . . 32 133 189 Cannon 544 | . . . . . . . . . 3 . 12 9 4 14 58 43 11 . . 131 85 174 Launcher 17 | . . . 2 . 2 2 6 . . . . . . . . . . . . 3 2 . Special 16 | . . . . 10 6 . . . . . . . . . . . . . . . . . Kinetic 988 | . 24 102 65 69 63 . 21 . 73 14 124 9 34 14 49 58 8 . . 11 48 202 Thermal 717 | . . . . 10 6 . . . 3 . 11 9 34 26 80 65 19 . . 152 170 132 Explosive 17 | . . . 2 . 2 2 6 . . . . . . . . . . . . 3 2 . Electromagnetic 58 | . . . . . . . . . . . 5 8 . . 16 . . . . . . 29 Robot Hit Streak 31 | . 8 17 8 12 16 1 4 . 17 6 12 7 13 22 19 13 14 . . 9 16 31 Robot Miss Streak 6 | . 3 4 2 4 4 1 6 . 6 6 4 2 4 1 3 2 3 . . 5 4 4 Penetration Max 1 | . . . . . . . . . 1 . 1 . . . 1 1 . . . . 1 1 Secondary Targets 20 | . . 3 5 2 . . . . 4 . 2 . . . . . 1 . . . 1 2 Max Gunslinging Chain 2 | . . 2 1 1 . . . . 1 . 1 . . . . . 1 . . . 1 1 Shots Hit Robots 1138 | . 14 69 42 51 56 1 9 . 72 14 102 17 51 24 76 83 8 . 8 30 133 278 Core Hits 551 | . 10 29 19 22 27 4 7 . 51 17 72 9 27 12 25 45 7 . 1 13 43 111 Critical Kills 25 | . . . . . . . . . . . 2 . 2 . 2 3 . . . 2 4 10 Critical Parts Destroyed 62 | . . 1 1 1 . . . . 2 . 1 . 5 2 7 2 . . 2 . 9 29 Critical Strikes 125 | . . 1 1 1 1 . . . 2 . 3 . 7 2 10 5 1 . 3 2 18 68 Burn 15 | . . . . . . . . . . . . . . . . . 1 . . . 5 9 Meltdown 5 | . . . . . . . . . . . . . . . . 1 . . . 1 2 1 Destroy 84 | . . 1 1 1 1 . . . . . 3 . 7 2 10 4 . . . 1 11 42 Blast 16 | . . . . . . . . . . . . . . . . . . . . . . 16 Smash 5 | . . . . . . . . . 2 . . . . . . . . . 3 . . . Melee Attacks 52 | . . . . . 6 . 1 . 13 8 . 4 . 1 2 . . . 8 . 1 8 Impact 46 | . . . . . . . 1 . 13 8 . 4 . 1 2 . . . 8 . 1 8 Slashing 6 | . . . . . 6 . . . . . . . . . . . . . . . . . Piercing . | . . . . . . . . . . . . . . . . . . . . . . . Sneak Attacks . | . . . . . . . . . . . . . . . . . . . . . . . Combat Hostiles . | . . . . . . . . . . . . . . . . . . . . . . . Follow-up Attacks . | . . . . . . . . . . . . . . . . . . . . . . . Damage Inflicted 32328 | . 229 957 962 797 1359 192 162 . 2460 220 2025 841 1465 700 2564 2629 301 . 941 1414 4573 7537 Guns 18795 | . 229 957 699 749 1064 . 162 . 1197 220 1972 187 1315 427 1557 1495 261 . . 449 2612 3243 Cannons 8763 | . . . . . . . . . 77 . . 241 150 273 807 1134 40 . . 388 1469 4184 Explosions 2595 | . . . 263 . 295 192 . . . . 53 413 . . 200 . . . . 577 492 110 Melee 2127 | . . . . . . . . . 1186 . . . . . . . . . 941 . . . Ramming . | . . . . . . . . . . . . . . . . . . . . . . . Kinetic 15187 | . 229 957 699 749 1064 . 162 . 1197 220 1898 61 674 195 967 1067 125 . . 173 696 4054 Thermal 12707 | . . . 76 48 . . . . 77 . 53 704 791 505 1446 1562 176 . . 664 3385 3220 Explosive 1743 | . . . 187 . 295 192 . . . . . . . . . . . . . 577 492 . Electromagnetic 564 | . . . . . . . . . . . 74 76 . . 151 . . . . . . 263 Impact 2127 | . . . . . . . . . 1186 . . . . . . . . . 941 . . . Slashing . | . . . . . . . . . . . . . . . . . . . . . . . Piercing . | . . . . . . . . . . . . . . . . . . . . . . . Highest Corruption 11 | . . . . . . . . . 4 . . . . 4 11 1 1 1 1 10 2 5 Average Corruption 3 | . . . . . . . . . 3 . . . . 3 4 1 1 1 1 6 1 2 Corruption Purged 14 | . . . . . . . . . . . . . . . 10 . . . . . 3 1 Corruption Blocked 23 | . . . . . . . . . . . . . . . . . . . . . 23 . Effects 140 | . . . . . . . . . 8 . . . . . 31 3 7 5 . 60 1 25 Message Errors 39 | . . . . . . . . . 4 . . . . . 6 2 2 1 . 17 1 6 Matter Fused 34 | . . . . . . . . . 2 . . . . . 12 . 2 . . 14 . 4 Heat Flow Errors 13 | . . . . . . . . . . . . . . . 2 . . 1 . 7 . 3 Energy Discharges 13 | . . . . . . . . . . . . . . . 4 . 2 3 . 3 . 1 Parts Fused 4 | . . . . . . . . . 1 . . . . . 1 . . . . 1 . 1 Data Loss (minor) 15 | . . . . . . . . . 1 . . . . . 1 . 1 . . 10 . 2 Data Loss (major) 4 | . . . . . . . . . . . . . . . . . . . . 3 . 1 Misfires 8 | . . . . . . . . . . . . . . . 3 . . . . 1 . 4 Weapon Failures 10 | . . . . . . . . . . . . . . . 2 1 . . . 4 . 3 Overload Shots 1 | . . . . . . . . . . . . . . . . . . . . . 1 . Overflow Damage 1892 | . . . 20 . . . . . 1087 . . . . . 20 7 . . 506 23 104 125 Projectiles 164 | . . . . . . . . . . . . . . . . 7 . . . 23 50 84 Explosions 135 | . . . 20 . . . . . . . . . . . 20 . . . . . 54 41 Melee 1593 | . . . . . . . . . 1087 . . . . . . . . . 506 . . . Knockbacks 23 | . . . . . . . . . . . . . . . . . . . 2 . 1 20 Impact 2 | . . . . . . . . . . . . . . . . . . . 2 . . . Kinetic 20 | . . . . . . . . . . . . . . . . . . . . . 1 19 Secondary 1 | . . . . . . . . . . . . . . . . . . . . . . 1 Self-Inflicted Damage 356 | . . . 88 . 72 . . . . . . . . . 107 . . . . . . 89 Shots 8 | . . . 2 . 2 . . . . . . . . . 3 . . . . . . 1 Rammed . | . . . . . . . . . . . . . . . . . . . . . . . Targets Rammed . | . . . . . . . . . . . . . . . . . . . . . . . Kicked . | . . . . . . . . . . . . . . . . . . . . . . . Crushed . | . . . . . . . . . . . . . . . . . . . . . . . Highest Temperature 414 | . 3 17 61 38 109 . 40 . 123 . 306 66 66 204 294 414 . 184 . 218 24 204 Average Temperature 51 | . 2 6 25 12 31 . 20 . 33 . 63 24 33 77 79 102 . 95 . 71 10 129 Received Heat Transfer 2890 | . 60 240 249 90 156 . . . 162 . 514 . 9 30 90 187 . . . 21 27 1055 Effects 2 | . . . . . . . . . . . . . . . . 2 . . . . . . Energy Bleed 1 | . . . . . . . . . . . . . . . . 1 . . . . . . Short Circuit 1 | . . . . . . . . . . . . . . . . 1 . . . . . . Siege Activations 2 | . . . . . . . . . . . . . . . . . . . . . . 2 Total Turns 46 | . . . . . . . . . . . . . . . . . . . . . . 46 Longest Duration 29 | . . . . . . . . . . . . . . . . . . . . . . 29 Robots Corrupted 1 | . . . . . . . . . . . . . . . 1 . . . . . . . Combat Hostiles 1 | . . . . . . . . . . . . . . . 1 . . . . . . . Parts Fried 8 | . . . . . . . . . 2 . . 1 . . . . . . 3 . 1 1 Impact Corruptions 51 | . . . . . . . . . 36 . . . . . . . . . 14 . . 1 Robots Melted 5 | . . . . . . . . . . . . . . . . 1 . . . 1 2 1 Combat Hostiles 4 | . . . . . . . . . . . . . . . . 1 . . . 1 2 . Parts Melted 46 | . . . . . . . . . . . . . . . . 11 1 . . 2 22 10 Heat Transferred 16084 | . . . 100 100 . . . . . . 50 237 925 296 1127 2242 309 . . 920 4588 5190 Parts Sabotaged . | . . . . . . . . . . . . . . . . . . . . . . . Parts Stolen . | . . . . . . . . . . . . . . . . . . . . . . . Parts Stripped . | . . . . . . . . . . . . . . . . . . . . . . . Power Chain Reactions 6 | . . . . . . . . . . . 1 1 . . 3 . . . . . . 1 Missiles Intercepted . | . . . . . . . . . . . . . . . . . . . . . . . Alert | -11 -10 -9 -9 -8 -7 -7 -7 -7 -6 -6 -6 -6 -6 -6 -5 -4 -4 -4 -4 -3 -3 -3 ------- Run | Jun Mat Mat Min Mat Fac Low Low Dat Pro Fac Ext Cet Arc Hub Fac Fac Upp Upp Zhi Pro Res Qua Peak Influence 771 | . 121 432 497 475 199 . . . . 459 511 502 496 546 262 346 . . . . 771 641 Initial 750 | . . 50 168 132 163 . . . . 407 56 285 200 103 262 110 . . . . 750 270 Average 292 | . 83 238 375 348 99 . . . . 391 167 416 421 337 175 195 . . . . 429 432 Maximum Alert Level 3 | . . 2 2 2 . . . . . 2 2 2 2 2 1 1 . . . . 3 2 Low Security (%) 35 | . 100 41 . 10 100 . . . . 11 73 . . 13 63 47 . . . . 2 . Level 1 35 | . . 36 69 59 . . . . . 11 20 13 33 48 36 52 . . . . 50 40 Level 2 26 | . . 22 29 30 . . . . . 77 5 86 66 37 . . . . . . 31 58 Level 3 2 | . . . . . . . . . . . . . . . . . . . . . 15 . Level 4 . | . . . . . . . . . . . . . . . . . . . . . . . Level 5 . | . . . . . . . . . . . . . . . . . . . . . . . High Security . | . . . . . . . . . . . . . . . . . . . . . . . Max Security . | . . . . . . . . . . . . . . . . . . . . . . . Squads Dispatched 43 | . 2 . . 1 3 . . . . 1 4 . . 4 5 2 . . . . 10 11 Investigation 7 | . 1 . . . 1 . . . . . . . . 1 2 . . . . . 2 . Extermination 14 | . . . . . 1 . . . . . . . . 1 2 1 . . . . 5 4 Reinforcement 20 | . 1 . . 1 1 . . . . 1 4 . . 2 1 . . . . . 2 7 Assault . | . . . . . . . . . . . . . . . . . . . . . . . Garrison 2 | . . . . . . . . . . . . . . . . 1 . . . . 1 . Intercept . | . . . . . . . . . . . . . . . . . . . . . . . Searches Triggered 4 | . . . . . . . . . . 1 . . . . . . . . . . 3 . Data Miner Redirects 1 | . . . . . . . . . . . . . . . . . . . . . 1 . Construction Impeded 1 | . . . . . . . . . . . 1 . . . . . . . . . . . Haulers Reinforced 4 | . . . . . 1 . . . . . . . . . . . . . . . 1 2 Active Scanning Responses . | . . . . . . . . . . . . . . . . . . . . . . . Cargo Convoy Interrupts . | . . . . . . . . . . . . . . . . . . . . . . . Stealth | -11 -10 -9 -9 -8 -7 -7 -7 -7 -6 -6 -6 -6 -6 -6 -5 -4 -4 -4 -4 -3 -3 -3 --------- Run | Jun Mat Mat Min Mat Fac Low Low Dat Pro Fac Ext Cet Arc Hub Fac Fac Upp Upp Zhi Pro Res Qua Distress Signals 12 | . . . . 1 . . . . . . 2 1 . 4 . 1 . . . 1 . 2 Communications Jammed 10 | . . . . . . . . . . . . . . . 1 1 . . . . . 8 Distress Signals 10 | . . . . . . . . . . . . . . . 1 1 . . . . . 8 Times Spotted 338 | . 6 17 14 15 12 3 6 . 18 4 33 6 20 29 18 23 6 1 . 10 29 68 Peak Tracking Total 12 | . 3 6 6 4 4 3 3 . 4 2 4 5 2 12 3 6 4 1 . 4 7 7 Tactical Retreats 13 | . . . . . 1 . . . 1 . 3 . . 1 . 1 . . . 1 3 2 Traps | -11 -10 -9 -9 -8 -7 -7 -7 -7 -6 -6 -6 -6 -6 -6 -5 -4 -4 -4 -4 -3 -3 -3 ------- Run | Jun Mat Mat Min Mat Fac Low Low Dat Pro Fac Ext Cet Arc Hub Fac Fac Upp Upp Zhi Pro Res Qua Traps Triggered 8 | . 1 . . . 1 . . . . . 2 . . . 2 . . . . . 1 1 Indirectly . | . . . . . . . . . . . . . . . . . . . . . . . Trap Hack Attempts . | . . . . . . . . . . . . . . . . . . . . . . . Triggered . | . . . . . . . . . . . . . . . . . . . . . . . Disarmed . | . . . . . . . . . . . . . . . . . . . . . . . Reprogrammed 4 | . . . . . . . . . . . . . . . 4 . . . . . . . Reused 1 | . . . . . . . . . . . . . . . 1 . . . . . . . Traps Extracted . | . . . . . . . . . . . . . . . . . . . . . . . Installed . | . . . . . . . . . . . . . . . . . . . . . . . Triggered 1 | . . . . . . . . . . . . . . . 1 . . . . . . . Machines | -11 -10 -9 -9 -8 -7 -7 -7 -7 -6 -6 -6 -6 -6 -6 -5 -4 -4 -4 -4 -3 -3 -3 ---------- Run | Jun Mat Mat Min Mat Fac Low Low Dat Pro Fac Ext Cet Arc Hub Fac Fac Upp Upp Zhi Pro Res Qua Machines Disabled 26 | . . . 2 1 . . . . . . . 5 5 4 2 . . . 1 . . 6 Max in Single Turn 2 | . . . 1 . . . . . . . . 1 1 1 2 . . . 1 . . 1 Garrison Access 2 | . . . . . 1 . . . . . . . . . 1 . . . . . . . Network Hub 3 | . . . . . . . . . . . . . . 3 . . . . . . . . Machines Repaired 1 | . . . . . . . . . . . . . . 1 . . . . . . . . Machines Sabotaged . | . . . . . . . . . . . . . . . . . . . . . . . Overloaded Fab Kills . | . . . . . . . . . . . . . . . . . . . . . . . Hacking | -11 -10 -9 -9 -8 -7 -7 -7 -7 -6 -6 -6 -6 -6 -6 -5 -4 -4 -4 -4 -3 -3 -3 --------- Run | Jun Mat Mat Min Mat Fac Low Low Dat Pro Fac Ext Cet Arc Hub Fac Fac Upp Upp Zhi Pro Res Qua Machines Accessed 60 | . 1 2 . 2 7 . 1 4 . 2 2 . 1 3 11 2 . 1 8 . 4 9 Terminals 29 | . 1 2 . 2 5 . . . . 2 2 . . 2 5 2 . . . . 1 5 Fabricators 4 | . . . . . 1 . . . . . . . . . 2 . . . . . 1 . Repair Stations 3 | . . . . . . . . . . . . . . . 1 . . . . . . 2 Recycling Units 1 | . . . . . . . . . . . . . . . 1 . . . . . . . Scanalyzers 5 | . . . . . . . . . . . . . . . 1 . . . . . 2 2 Garrison Access 3 | . . . . . 1 . . . . . . . . 1 1 . . . . . . . Total Hacks 277 | . 1 3 . 10 24 . 1 30 . 7 4 . 1 7 78 17 . 1 47 . 27 19 Successful 179 | . 1 1 . 6 12 . 1 30 . 4 4 . 1 2 41 5 . 1 47 . 15 8 Failed 97 | . . 2 . 4 12 . . . . 3 . . . 5 36 12 . . . . 12 11 Catastrophic 10 | . . . . . 2 . . . . 1 . . . 1 2 . . . . . 1 3 Database Lockouts 1 | . . . . . . . . . . . . . . . 1 . . . . . . . Manual 105 | . 1 . . 5 12 . . . . 6 3 1 . 6 47 10 . . . . 8 6 Terminals 131 | . 1 3 . 10 18 . . . . 7 4 . . 6 53 17 . . . . 4 8 Fabricators 19 | . . . . . 2 . . . . . . . . . 11 . . . . . 6 . Repair Stations 14 | . . . . . . . . . . . . . . . 9 . . . . . . 5 Recycling Units 2 | . . . . . . . . . . . . . . . 2 . . . . . . . Scanalyzers 25 | . . . . . . . . . . . . . . . 2 . . . . . 17 6 Garrison Access 6 | . . . . . 4 . . . . . . . . 1 1 . . . . . . . Terminal Hacks 129 | . . 1 . 4 7 . 1 30 . 2 1 . 1 . 24 4 . 1 47 . 2 4 Record 54 | . . . . . . . . 11 . 1 1 . 1 . 2 . . . 35 . . 3 Part Schematic 17 | . . . . . . . . 11 . . . . . . 1 1 . . 4 . . . Robot Schematic 5 | . . . . . . . . 5 . . . . . . . . . . . . . . Robot Analysis 8 | . . . . . 2 . . . . . . . . . 2 . . . 4 . . . Prototype ID Bank 9 | . . . . . 2 . . 3 . . . . . . . . . . 4 . . . Open Door 3 | . . . . . . . 1 . . . . . . . . . . 1 . . . 1 Level Access Points 2 | . . . . 1 . . . . . . . . . . 1 . . . . . . . Branch Access Points 7 | . . 1 . 1 1 . . . . 1 . . . . 1 1 . . . . 1 . Terminal Index 1 | . . . . . . . . . . . . . . . 1 . . . . . . . Repair Station Index 1 | . . . . . . . . . . . . . . . 1 . . . . . . . Alert Level 4 | . . . . . . . . . . . . . . . 3 . . . . . 1 . Locate Traps 4 | . . . . 1 . . . . . . . . . . 3 . . . . . . . Reprogram Traps 1 | . . . . . . . . . . . . . . . 1 . . . . . . . Dispatch Records 1 | . . . . . . . . . . . . . . . 1 . . . . . . . Transport Status 3 | . . . . . . . . . . . . . . . 2 1 . . . . . . Investigation Status 1 | . . . . . . . . . . . . . . . 1 . . . . . . . Hauler Manifests 2 | . . . . . . . . . . . . . . . 1 1 . . . . . . Registered Components 1 | . . . . . . . . . . . . . . . 1 . . . . . . . Registered Prototypes 1 | . . . . . . . . . . . . . . . 1 . . . . . . . Zone Layout 4 | . . . . 1 2 . . . . . . . . . 1 . . . . . . . Fabricator Hacks 7 | . . . . . 2 . . . . . . . . . 3 . . . . . 2 . Network Status 4 | . . . . . 1 . . . . . . . . . 2 . . . . . 1 . Build 3 | . . . . . 1 . . . . . . . . . 1 . . . . . 1 . Repair Station Hacks 5 | . . . . . . . . . . . . . . . 3 . . . . . . 2 Scan Component 3 | . . . . . . . . . . . . . . . 2 . . . . . . 1 Repair 2 | . . . . . . . . . . . . . . . 1 . . . . . . 1 Recycling Unit Hacks 1 | . . . . . . . . . . . . . . . 1 . . . . . . . Report Inventory 1 | . . . . . . . . . . . . . . . 1 . . . . . . . Scanalyzer 8 | . . . . . . . . . . . . . . . . . . . . . 8 . Insert Component 4 | . . . . . . . . . . . . . . . . . . . . . 4 . Analyze 4 | . . . . . . . . . . . . . . . . . . . . . 4 . Garrison Access Hacks 3 | . . . . . 2 . . . . . . . . . 1 . . . . . . . Unlock Access 1 | . . . . . 1 . . . . . . . . . . . . . . . . . Seal Access 2 | . . . . . 1 . . . . . . . . . 1 . . . . . . . Unauthorized Hacks 25 | . 1 . . 2 1 . . . . 2 3 . . 2 8 1 . . . . 3 2 Terminals 17 | . 1 . . 2 1 . . . . 2 3 . . 2 4 1 . . . . . 1 Track 1 | . . . . . . . . . . . . . . . 1 . . . . . . . Assimilate 4 | . 1 . . . . . . . . 1 2 . . . . . . . . . . . Botnet 7 | . . . . 1 1 . . . . 1 1 . . . 1 1 . . . . . 1 Detonate 1 | . . . . . . . . . . . . . . 1 . . . . . . . . Disrupt 1 | . . . . . . . . . . . . . . . 1 . . . . . . . Operators 2 | . . . . 1 . . . . . . . . . . 1 . . . . . . . Sabotage 1 | . . . . . . . . . . . . . . 1 . . . . . . . . Fabricators 4 | . . . . . . . . . . . . . . . 3 . . . . . 1 . Prioritize 2 | . . . . . . . . . . . . . . . 1 . . . . . 1 . Fabnet 2 | . . . . . . . . . . . . . . . 2 . . . . . . . Repair Stations . | . . . . . . . . . . . . . . . . . . . . . . . Recycling Units 1 | . . . . . . . . . . . . . . . 1 . . . . . . . Tunnel 1 | . . . . . . . . . . . . . . . 1 . . . . . . . Scanalyzers 3 | . . . . . . . . . . . . . . . . . . . . . 2 1 Researchers 3 | . . . . . . . . . . . . . . . . . . . . . 2 1 Garrison Access . | . . . . . . . . . . . . . . . . . . . . . . . Data Cores Recovered 2 | . . . . . . . . . . 1 . . . . 1 . . . . . . . Used . | . . . . . . . . . . . . . . . . . . . . . . . Hacking Detections 33 | . . 1 . 2 6 . . . . 1 2 . . 1 9 2 . . . . 3 6 Full Trace Events 2 | . . . . . 1 . . . . . . . . . 1 . . . . . . . Feedback Events . | . . . . . . . . . . . . . . . . . . . . . . . Feedback Blocked . | . . . . . . . . . . . . . . . . . . . . . . . Robot Schematics Acquired 5 | . . . . . . . . 5 . . . . . . . . . . . . . . Robots Built 6 | . . . . . 1 . . . . . . . . . 2 . . . . . 3 . Authchips . | . . . . . . . . . . . . . . . . . . . . . . . Time 294 | . . . . . 116 . . . . . . . . . 76 . . . . . 102 . Total Robot Build Rating 37 | . . . . . 3 . . . . . . . . . 10 . . . . . 24 . Part Schematics Acquired 19 | . . . . . . . . 11 . . . . . . 1 1 . . 4 . 2 . Parts Built . | . . . . . . . . . . . . . . . . . . . . . . . Authchips . | . . . . . . . . . . . . . . . . . . . . . . . Time . | . . . . . . . . . . . . . . . . . . . . . . . Total Part Build Rating . | . . . . . . . . . . . . . . . . . . . . . . . Parts Repaired 2 | . . . . . . . . . . . . . . . 1 . . . . . . 1 Time 89 | . . . . . . . . . . . . . . . 35 . . . . . . 54 Parts Recycled . | . . . . . . . . . . . . . . . . . . . . . . . Recycled Matter . | . . . . . . . . . . . . . . . . . . . . . . . Retrieved Matter . | . . . . . . . . . . . . . . . . . . . . . . . Retrieved Components . | . . . . . . . . . . . . . . . . . . . . . . . Parts Scanalyzed 3 | . . . . . . . . . . . . . . . . . . . . . 3 . Part Schematics Acquired 2 | . . . . . . . . . . . . . . . . . . . . . 2 . Parts Damaged . | . . . . . . . . . . . . . . . . . . . . . . . Bothacking | -11 -10 -9 -9 -8 -7 -7 -7 -7 -6 -6 -6 -6 -6 -6 -5 -4 -4 -4 -4 -3 -3 -3 ------------ Run | Jun Mat Mat Min Mat Fac Low Low Dat Pro Fac Ext Cet Arc Hub Fac Fac Upp Upp Zhi Pro Res Qua Used RIF Installer . | . . . . . . . . . . . . . . . . . . . . . . . Robots Hacked 3 | . . . . . . . . . . . . . . . . 1 . 1 . . 1 . Non-combat . | . . . . . . . . . . . . . . . . . . . . . . . Combat 3 | . . . . . . . . . . . . . . . . 1 . 1 . . 1 . Robot Hacks Applied . | . . . . . . . . . . . . . . . . . . . . . . . Relay Couplers Released . | . . . . . . . . . . . . . . . . . . . . . . . Fabnet Peak Effective % 6 | . . . . . . . . . . . . . . . . 6 6 6 6 2 2 2 Autooverrided 3 | . . . . . . . . . . . . . . . . 1 . 1 . . 1 . Robots Rewired 8 | . . . . . . . . . . . 8 . . . . . . . . . . . Allies Hacked 1 | . . . . . . . . . . . . . . . . 1 . . . . . . Hacks Repelled . | . . . . . . . . . . . . . . . . . . . . . . . Allies | -11 -10 -9 -9 -8 -7 -7 -7 -7 -6 -6 -6 -6 -6 -6 -5 -4 -4 -4 -4 -3 -3 -3 -------- Run | Jun Mat Mat Min Mat Fac Low Low Dat Pro Fac Ext Cet Arc Hub Fac Fac Upp Upp Zhi Pro Res Qua Total Allies 35 | . . . 1 . 1 . . . 1 1 18 5 . . 2 1 . 1 . . 4 . Largest Group 9 | . . . 1 1 1 1 1 1 2 1 9 9 9 4 2 1 . 1 . . 3 . Highest-Rated Group 702 | . . . 31 31 26 26 26 26 122 10 390 702 702 259 28 58 . 49 . . 126 . Highest-Rated Ally 159 | . . . 31 31 26 26 26 26 96 10 159 159 127 96 14 58 . 49 . . 82 . Total Orders 4 | . . . . . 2 . . . . . . . . 2 . . . . . . . . STAY 2 | . . . . . 1 . . . . . . . . 1 . . . . . . . . FOLLOW 2 | . . . . . 1 . . . . . . . . 1 . . . . . . . . Ally Attacks 271 | . . . 4 13 . . . . 14 . 130 29 17 46 2 1 . . . . 15 . Total Damage 6434 | . . . 42 169 . . . . 479 . 2566 624 467 1701 . 45 . . . . 341 . Kills 59 | . . . 1 3 . . . . 5 . 26 2 6 14 . . . . . . 2 . Allies Corrupted 1 | . . . . . . . . . . . . . . 1 . . . . . . . . Allies Melted . | . . . . . . . . . . . . . . . . . . . . . . . Intel | -11 -10 -9 -9 -8 -7 -7 -7 -7 -6 -6 -6 -6 -6 -6 -5 -4 -4 -4 -4 -3 -3 -3 ------- Run | Jun Mat Mat Min Mat Fac Low Low Dat Pro Fac Ext Cet Arc Hub Fac Fac Upp Upp Zhi Pro Res Qua Robot Analysis Total 8 | . . . . . 2 . . . . . . . . . 2 . . . 4 . . . Derelict Logs Recovered 9 | . . . 2 . . 3 2 . 1 . . . . . . . . 1 . . . . Drone Launches . | . . . . . . . . . . . . . . . . . . . . . . . Drone Recoveries . | . . . . . . . . . . . . . . . . . . . . . . . Exploration | -11 -10 -9 -9 -8 -7 -7 -7 -7 -6 -6 -6 -6 -6 -6 -5 -4 -4 -4 -4 -3 -3 -3 ------------- Run | Jun Mat Mat Min Mat Fac Low Low Dat Pro Fac Ext Cet Arc Hub Fac Fac Upp Upp Zhi Pro Res Qua Turns Passed 21065 | . 203 372 512 655 1384 541 1385 94 1187 450 1473 373 437 982 2251 840 632 484 457 2122 1922 2309 Spaces Moved 10833 | 1 153 200 363 333 918 469 658 83 376 277 917 184 256 662 1169 446 457 302 183 778 712 936 Core . | . . . . . . . . . . . . . . . . . . . . . . . Treads 532 | . . . . . . . . . . . . . . . . . . . . . . 532 Legs 6407 | 1 30 . . . . . . . 68 85 917 184 256 662 1169 446 457 302 183 778 712 157 Wheels 3894 | . 123 200 363 333 918 469 658 83 308 192 . . . . . . . . . . . 247 Hover . | . . . . . . . . . . . . . . . . . . . . . . . Flight . | . . . . . . . . . . . . . . . . . . . . . . . Fastest Speed 95 | 120 95 95 110 110 98 113 113 113 113 120 120 120 120 120 120 120 120 120 120 120 117 110 Average Speed 118 | 120 99 99 110 121 105 113 113 113 128 123 120 120 120 120 120 120 120 120 120 120 121 135 Slowest Speed 260 | 120 120 110 110 125 113 113 113 113 260 185 120 120 120 120 120 120 120 120 120 120 190 155 Overloaded Moves . | . . . . . . . . . . . . . . . . . . . . . . . Propulsion Burnouts . | . . . . . . . . . . . . . . . . . . . . . . . Robots Hopped . | . . . . . . . . . . . . . . . . . . . . . . . Cave-ins Triggered 2 | . . . . . . . . . . . . . . . . . . . . 2 . . Teleports 1 | . . . . . . . . . . . . . . . . . . . . . . 1 Exploration Rate (%) 48 | 2 40 24 62 29 24 69 84 69 53 8 67 72 92 42 29 16 56 46 62 64 24 78 Regions Visited 22 Branch Regions 14 Pre-discovered Areas 7 | . . . 1 . . 1 . 1 . . . . . . 1 . . . 3 . . . Known Exits Taken 19 | . . 1 . 1 1 1 1 1 1 1 1 1 1 1 1 1 1 1 1 1 1 . Unknown Exits Taken 3 | 1 1 . 1 . . . . . . . . . . . . . . . . . . . Scrap Searched 15 | . . . 2 . . 3 2 . . . . . . . . . 2 1 . 5 . . Spaces Dug 253 | . . . . 5 6 . 47 . . 8 2 1 . 7 31 1 8 . . 106 17 14 Terrain Destroyed 583 | . . . 24 8 12 14 63 . 2 8 18 19 12 13 83 52 13 . . 145 55 42 Melee 25 | . . . . . 6 . 1 . . 8 . 1 . 1 2 . . . . . 1 5 Projectile 360 | . . . . 8 . . . . 2 . 12 1 12 12 57 52 13 . . 126 32 33 AOE 197 | . . . 24 . 6 14 62 . . . 6 17 . . 24 . . . . 19 21 4 Terrain Rammed . | . . . . . . . . . . . . . . . . . . . . . . . Walls Destroyed . | . . . . . . . . . . . . . . . . . . . . . . . Machines Disabled . | . . . . . . . . . . . . . . . . . . . . . . . Actions | -11 -10 -9 -9 -8 -7 -7 -7 -7 -6 -6 -6 -6 -6 -6 -5 -4 -4 -4 -4 -3 -3 -3 --------- Run | Jun Mat Mat Min Mat Fac Low Low Dat Pro Fac Ext Cet Arc Hub Fac Fac Upp Upp Zhi Pro Res Qua Total 17499 | . 178 295 424 506 1264 477 1280 83 1010 364 1195 306 340 813 1886 660 514 423 410 1803 1590 1678 Wait 5017 | . 5 32 21 120 266 1 595 1 562 52 92 90 14 117 579 116 36 119 187 885 711 416 Move 10809 | . 152 199 362 332 917 468 657 82 375 276 916 183 255 661 1168 445 456 301 182 775 711 936 Hop . | . . . . . . . . . . . . . . . . . . . . . . . Pick Up 159 | . 3 9 4 4 6 . 5 . 5 6 15 2 15 3 19 11 1 1 4 . 17 29 Fast Attach 110 | . 2 3 . 2 6 . . . 9 3 2 3 . 2 10 8 . . 7 1 13 39 Attach 87 | . . 2 3 3 4 1 . . 5 2 6 . . . 14 7 1 . 2 . 6 31 Detach 36 | . 1 1 . 1 2 . . . 3 1 3 . . 1 2 2 . . 2 . 1 16 Swap 167 | . 2 9 6 6 18 4 4 . 5 2 9 7 4 8 18 13 2 1 5 2 16 26 Drop 193 | . 1 6 5 5 10 1 5 . 5 7 14 7 18 6 12 15 1 1 13 . 21 40 Fire 784 | . 12 34 23 33 29 2 13 . 28 7 55 10 34 14 62 43 17 . . 138 93 137 Melee 52 | . . . . . 6 . 1 . 13 8 . 4 . 1 2 . . . 8 . 1 8 Ram . | . . . . . . . . . . . . . . . . . . . . . . . Kick . | . . . . . . . . . . . . . . . . . . . . . . . Crush . | . . . . . . . . . . . . . . . . . . . . . . . Escape Stasis 6 | . . . . . . . . . . . 4 . . . . . . . . 2 . . Rewire 79 | . . . . . . . . . . . 79 . . . . . . . . . . . Trap . | . . . . . . . . . . . . . . . . . . . . . . . Miscellaneous . | . . . . . . . . . . . . . . . . . . . . . . . Route ------- -11/Junkyard -10/Materials -9/Materials (discovered 3 exits: *Min / *Sto x2) -9/Mines -8/Materials (discovered 3 exits: *Fac x3) -7/Factory (discovered 3 exits: *Fac / *Low x2) -7/Lower Caves -7/Lower Caves -7/Data Miner -6/Proximity Caves -6/Factory (discovered 6 exits: Fac x2 / *Low x2 / *Ext x2) -6/Extension (discovered 2 exits: *Fac / *Cet) -6/Cetus -6/Archives (discovered 3 exits: *Fac / *Hub x2) -6/Hub_04(d) (discovered 2 exits: *Fac x2) -5/Factory (discovered 6 exits: *Fac x4 / Upp x2) -4/Factory (discovered 2 exits: *Upp x2) -4/Upper Caves -4/Upper Caves (discovered 2 exits: *Res / *Zhi) -4/Zhirov -3/Proximity Caves -3/Research (discovered 3 exits: Arm / *Qua x2) -3/Quarantine History --------- Turn | Location | Event 1 | -11/Junkyard | Discovered new exit (range 0) 1 | -11/Junkyard | Entered Materials 195 | -10/Materials | Discovered new exit (range 10) 204 | -10/Materials | Entered another Materials area 204 | -9/Materials | Evolved 2 slots: Utility x1, Weapon x1 211 | -9/Materials | Identified exit to Mines 211 | -9/Materials | Identified exit to Storage 576 | -9/Materials | Entered Mines 588 | -9/Mines | Met a Derelict bent on vengeance 605 | -9/Mines | Build established: Skirmisher 719 | -9/Mines | Learned location of Zion (-6) 727 | -9/Mines | YI-UF0 nonchalantly dropped a Grenade Launcher on the ground 927 | -9/Mines | Received a Mining Laser from a helpful Derelict 1077 | -9/Mines | Discovered new exit (range 8) 1088 | -9/Mines | Entered Materials 1088 | -8/Materials | Accompanied by 1 ally 1088 | -8/Materials | Evolved 2 slots: Utility x2 1394 | -8/Materials | Build established: Gunner 1545 | -8/Materials | Identified exit to Factory 1743 | -8/Materials | Entered Factory 1743 | -7/Factory | Evolved 2 slots: Propulsion x1, Utility x1 2165 | -7/Factory | Identified exit to Garrison 2231 | -7/Factory | Discovered new exit (range 5) 2234 | -7/Factory | Identified exit to Factory 2485 | -7/Factory | Fabricated O-24 Administrator (x1) 2558 | -7/Factory | Identified exit to Lower Caves 3127 | -7/Factory | Entered Lower Caves 3127 | -7/Lower Caves | Accompanied by 1 ally 3191 | -7/Lower Caves | Learned location of Extension (-6) 3313 | -7/Lower Caves | Learned 8 Factory zone layouts 3375 | -7/Lower Caves | Encountered a Warlord checkpoint 3401 | -7/Lower Caves | Learned Factory security intel 3632 | -7/Lower Caves | Build established: Skirmisher 3654 | -7/Lower Caves | Discovered new exit (range 13) 3666 | -7/Lower Caves | Identified exit to Lower Caves 3668 | -7/Lower Caves | Entered another Lower Caves area 3668 | -7/Lower Caves | Accompanied by 1 ally 4160 | -7/Lower Caves | Spotted B-75 Beast 5008 | -7/Lower Caves | Learned Factory garrison access intel 5033 | -7/Lower Caves | Discovered new exit (range 10) 5040 | -7/Lower Caves | Learned Factory terminal intel 5043 | -7/Lower Caves | Identified exit to Data Miner 5053 | -7/Lower Caves | Entered Data Miner 5053 | -7/Data Miner | Accompanied by 1 ally 5053 | -7/Data Miner | Discovered new exit (range 6) 5058 | -7/Data Miner | Identified exit to Proximity Caves 5075 | -7/Data Miner | Met Data Miner 5094 | -7/Data Miner | Learned location of Section 7 (-2) 5094 | -7/Data Miner | Acquired the access code to Warlord's prototype stash 5112 | -7/Data Miner | Received God Mode back door access code from Data Miner 5147 | -7/Data Miner | Entered Proximity Caves 5147 | -6/Proximity Caves | Accompanied by 1 ally 5150 | -6/Proximity Caves | Spotter reported a threat 5151 | -6/Proximity Caves | Spotter reported a threat 5751 | -6/Proximity Caves | Escorted by Enhanced Grunt 5953 | -6/Proximity Caves | Learned location of 1 exit from Factory 6005 | -6/Proximity Caves | Attracted the attention of an 0b10 checkpoint 6052 | -6/Proximity Caves | Lost 3 parts (2n1u) 6060 | -6/Proximity Caves | Build established: Gunner 6123 | -6/Proximity Caves | Found Prototype Device 6123 | -6/Proximity Caves | Identified Exp. Thermal Shield 6135 | -6/Proximity Caves | Lost 4 parts (1n1u2w) 6246 | -6/Proximity Caves | Discovered exit to Factory (range 14) 6334 | -6/Proximity Caves | Entered Factory 6334 | -6/Factory | Evolved 2 slots: Propulsion x1, Utility x1 6335 | -6/Factory | Identified exit to Factory 6338 | -6/Factory | Loaded intel: 28 terminal locations 6339 | -6/Factory | Loaded intel: 4 garrison access locations 6438 | -6/Factory | Discovered new exit (range 19) 6502 | -6/Factory | Identified exit to Lower Caves 6502 | -6/Factory | Identified exit to Extension 6684 | -6/Factory | Search patrols dispatched 6700 | -6/Factory | Build established: Scavenger-Assassin 6784 | -6/Factory | Entered Extension 6975 | -6/Extension | Rescued a captive Derelict 7170 | -6/Extension | Rescued a captive Derelict 7173 | -6/Extension | Rescued a captive Derelict 7250 | -6/Extension | Build established: Scavenger-Skirmisher 7743 | -6/Extension | Rescued a captive Derelict 7745 | -6/Extension | Rescued a captive Derelict 7773 | -6/Extension | Rescued a captive Derelict 7774 | -6/Extension | Rescued a captive Derelict 7804 | -6/Extension | Rescued a captive Derelict 7806 | -6/Extension | Rescued a captive Derelict 7834 | -6/Extension | Disrupted transfer network 7977 | -6/Extension | Spotted B-75 Beast 7979 | -6/Extension | Rescued A7 8221 | -6/Extension | Discovered exit to Factory (range 10) 8222 | -6/Extension | Discovered new exit (range 6) 8249 | -6/Extension | Identified exit to Cetus 8257 | -6/Extension | Entered Cetus 8257 | -6/Cetus | Accompanied by 6 allies (A7) 8262 | -6/Cetus | Acquired a Cetus Manufacturing Module code from A7 8275 | -6/Cetus | Spotted Cetus Guard 8275 | -6/Cetus | Spotted Cetus Guard 8276 | -6/Cetus | Spotted Cetus Guard 8276 | -6/Cetus | Spotted Cetus Guard 8280 | -6/Cetus | Destroyed Cetus Guard 8294 | -6/Cetus | Destroyed Cetus Guard 8297 | -6/Cetus | Allies destroyed Cetus Guard 8308 | -6/Cetus | Destroyed Cetus Guard 8393 | -6/Cetus | Started Cetus Manufacturing Module 8418 | -6/Cetus | Manufactured an Enhanced Grunt 8443 | -6/Cetus | Manufactured an Enhanced Grunt 8448 | -6/Cetus | Escorted A7 to Cetus Mainframe 8468 | -6/Cetus | Manufactured an Enhanced Grunt 8493 | -6/Cetus | Manufactured an Enhanced Grunt 8518 | -6/Cetus | Manufactured an Enhanced Grunt 8591 | -6/Cetus | Discovered new exit (range 21) 8615 | -6/Cetus | Identified exit to Archives 8630 | -6/Cetus | Entered Archives 8630 | -6/Archives | Accompanied by 9 allies (A7) 8635 | -6/Archives | Received a hacking code to weaken MAIN.C 8704 | -6/Archives | Discovered new exit (range 22) 8750 | -6/Archives | Discovered new exit (range 20) 8803 | -6/Archives | Discovered exit to Factory (range 18) 8968 | -6/Archives | Build established: Scavenger-Mutant 9034 | -6/Archives | Unable to access archive contents 9060 | -6/Archives | Identified exit to Hub_04(d) 9067 | -6/Archives | Entered Hub_04(d) 9067 | -6/Hub_04(d) | Accompanied by 4 allies 9363 | -6/Hub_04(d) | Discovered exit to Factory (range 9) 9534 | -6/Hub_04(d) | Build established: Scavenger-Skirmisher 9764 | -6/Hub_04(d) | Discovered exit to Factory (range 22) 9986 | -6/Hub_04(d) | Network Hub disabled 9986 | -6/Hub_04(d) | Network Hub disabled 9986 | -6/Hub_04(d) | Network Hub disabled 9992 | -6/Hub_04(d) | Spotted Lightning 9992 | -6/Hub_04(d) | Spotted Lightning 9992 | -6/Hub_04(d) | Spotted Lightning 10024 | -6/Hub_04(d) | Spotted Lightning 10041 | -6/Hub_04(d) | Spotted Lightning 10044 | -6/Hub_04(d) | Spotted Lightning 10049 | -6/Hub_04(d) | Entered Factory 10049 | -5/Factory | Evolved 2 slots: Utility x2 11007 | -5/Factory | Identified exit to Upper Caves 11058 | -5/Factory | Fabricated E-15 Imp (x2) 11162 | -5/Factory | Lost 3 parts (2u1w) 11230 | -5/Factory | Lost 4 parts (2u2w) 11446 | -5/Factory | System corruption reached 10% 11482 | -5/Factory | Lost 3 parts (2n1u) 11670 | -5/Factory | Identified exit to Factory 11790 | -5/Factory | Repaired Broken Arm. Leg 12227 | -5/Factory | Central database locked down 12300 | -5/Factory | Entered another Factory area 12300 | -4/Factory | Evolved 2 slots: Utility x2 12384 | -4/Factory | Spotted B-86 Titan 12576 | -4/Factory | Identified exit to Upper Caves 12788 | -4/Factory | Local machine network offline 12935 | -4/Factory | Lost 3 parts (1p1u1w) 13108 | -4/Factory | Garrison activated, responded to threat 13140 | -4/Factory | Entered Upper Caves 13583 | -4/Upper Caves | Encountered a Warlord checkpoint 13685 | -4/Upper Caves | Discovered new exit (range 12) 13697 | -4/Upper Caves | Identified exit to Upper Caves 13772 | -4/Upper Caves | Entered another Upper Caves area 13789 | -4/Upper Caves | Discovered new exit (range 4) 13800 | -4/Upper Caves | Identified exit to Research 13841 | -4/Upper Caves | Learned Research security intel 13928 | -4/Upper Caves | Encountered a Warlord checkpoint 14230 | -4/Upper Caves | Discovered new exit (range 14) 14254 | -4/Upper Caves | Identified exit to Zhirov 14256 | -4/Upper Caves | Entered Zhirov 14438 | -4/Zhirov | Discovered new exit (range 3) 14462 | -4/Zhirov | Met Zhirov 14491 | -4/Zhirov | Learned location of Quarantine (-3) 14491 | -4/Zhirov | Learned location of Testing (-2) 14491 | -4/Zhirov | Learned location of Command (-1) 14517 | -4/Zhirov | Zhirov requested help retrieving the SGEMP Prototype 14541 | -4/Zhirov | Found Alien Artifact 14541 | -4/Zhirov | Identified Integrated Dissipator 14541 | -4/Zhirov | Installed Integrated Dissipator, increased core heat dissipation (+20) 14556 | -4/Zhirov | Found Alien Artifact 14712 | -4/Zhirov | Identified exit to Proximity Caves 14713 | -4/Zhirov | Entered Proximity Caves 14992 | -3/Proximity Caves | Build established: Hacker-Gunner 15073 | -3/Proximity Caves | Spotter reported a threat 15525 | -3/Proximity Caves | Crushed by falling debris 15567 | -3/Proximity Caves | Crushed by falling debris 15632 | -3/Proximity Caves | Spotter reported a threat 15720 | -3/Proximity Caves | Spotter reported a threat 15888 | -3/Proximity Caves | System corruption reached 10% 15902 | -3/Proximity Caves | Spotter reported a threat 15955 | -3/Proximity Caves | Spotter reported a threat 16340 | -3/Proximity Caves | Build established: Scavenger-Mutant 16787 | -3/Proximity Caves | Discovered exit to Research (range 14) 16835 | -3/Proximity Caves | Entered Research 16835 | -3/Research | Evolved 2 slots: Utility x2 17085 | -3/Research | Search patrols dispatched 17152 | -3/Research | Fabricated B-74 Champion? 17298 | -3/Research | Incoming investigation squad redirected 17373 | -3/Research | Search patrols dispatched 17476 | -3/Research | Found Hvy. Reactive Plating 17622 | -3/Research | Search patrols dispatched 17668 | -3/Research | Build established: Skirmisher 17948 | -3/Research | Garrison activated, responded to threat 17950 | -3/Research | Lost 4 parts (1p2u1w) 17966 | -3/Research | Spotted B-86 Titan 18289 | -3/Research | Found Prototype Device 18289 | -3/Research | Identified Exp. Thermal Defense Suite 18667 | -3/Research | Destroyed 7 combat bots 18677 | -3/Research | Lost 3 parts (3u) 18678 | -3/Research | Identified exit to Armory 18678 | -3/Research | Identified exit to Quarantine 18689 | -3/Research | Found Antimissile System 18757 | -3/Research | Entered Quarantine 18781 | -3/Quarantine | Spotted Alpha 7 18902 | -3/Quarantine | Destroyed Alpha 7 18915 | -3/Quarantine | Found Prototype Processor 18915 | -3/Quarantine | Identified Exp. Targeting Computer 18918 | -3/Quarantine | Found Prototype Processor 18918 | -3/Quarantine | Identified Exp. Target Analyzer 18990 | -3/Quarantine | Lost 6 parts (1p1n2u2w) 19707 | -3/Quarantine | Build established: Scavenger-Gunner 19864 | -3/Quarantine | Lost 4 parts (2n2w) 19959 | -3/Quarantine | Found Alien Artifact 19969 | -3/Quarantine | Found Alien Artifact 19982 | -3/Quarantine | Found Alien Artifact 19982 | -3/Quarantine | Identified Terrabomb (x3) 19982 | -3/Quarantine | Used Terrabomb 20069 | -3/Quarantine | Core integrity fell below 50% 20196 | -3/Quarantine | Found Alien Launcher 20196 | -3/Quarantine | Identified Sigix Terminator 20239 | -3/Quarantine | Found Alien Artifact 20320 | -3/Quarantine | Identified Dimensional Node Initializer 20320 | -3/Quarantine | Initialized slip node 20321 | -3/Quarantine | Identified Transdimensional Reconstructor 20321 | -3/Quarantine | Warped through subspace 20352 | -3/Quarantine | Lost 3 parts (1u2w) 20571 | -3/Quarantine | Core integrity fell below 20% 20593 | -3/Quarantine | Lost 3 parts (2n1u) 20781 | -3/Quarantine | Found Alien Artifact 20781 | -3/Quarantine | Identified Core Reset Matrix 20781 | -3/Quarantine | Used Core Reset Matrix 20785 | -3/Quarantine | Detected hypermatrix surge 20785 | -3/Quarantine | Sensed 12 artifacts in vicinity 20945 | -3/Quarantine | Repaired Hdn. Centrium Wheel 21066 | -3/Quarantine | Destroyed by G-67 Veteran with Field Laser Last Messages --------------- 21039_ Railgun destroyed. 21041_ Slug penetrates X-87 Electro. 21041_ Slug penetrates Wall. 21041_ Slug penetrates X-87 Electro. 21042_ Imp. Antigrav System destroyed. 21043_ Imp. Hardlight Generator destroyed. 21044_ X-87 Electro destroyed. 21044_ Cld. Phase Gun destroyed. 21045_ Imp. Hacking Suite destroyed. 21051_ X-87 Electro suffers critical hit (Destroy). 21051_ Destroyed Unknown Energy Cannon. 21054_ Plasma Rifle destroyed. 21055_ Lgt. Antimatter Reactor destroyed. 21057_ Acquired Unknown Energy Cannon. 21057_ Identified Com. HERF Cannon. 21058_ Adv. Energy Well destroyed. 21058_ Acquired 80 matter. 21060_ Adv. Dynamic Insulation System destroyed. 21063_ Acquired Mic. Antimatter Reactor. 21065_ U-05 Engineer builds a Wall. Map ----- +----------------------------------------------------+ | ?????????????????????????????????????????????????? | | ?????????????????????????????????????????????????? | | ?????????????????????????????????????????????????? | | ?????????????????????????????????????????????????? | | ?????????????????????????????????????????????????? | | ?????????????????????????????????????????????????? | | ?????????????????????????????????????????????????? | | ?????????????????????????????????????????????????? | | ?????????????????????????????????????????????????? | | ????????????????????? ?????????????????????????? | | ???????????????????# ?????????????????????????? | | ???????????????????# ?????????????????????????? | | ???????????????????# ?????????????????????????? | | ???????????????????# ?????????????????????????? | | ???????????????????# ?????????????????????????? | | ???????????????????+ ?????????????????????????? | | ???????????????????# ###??????????????????????? | | ???????????????????# #"##?????????????????????? | | ?????????????c?????# # ?????????????????????? | | ???????????????/???# # ?????????????????????? | | ???????????????????# # ??????????????????????? | | ???????????????????# # ??????????????????????? | | ??????????###??????# + ??????????????????????? | | ???????????T"""????# # ??????????????????????? | | ????????????"""????# ##########???????????????? | | ????????????? ?c?# #@u #???????????????? | | ?????????????? ???# # """ #???????????????? | | ??????????????? ??# # g """ #???????????????? | | ?????###########/### # %%""" #???????????????? | | ?????# c += """ #???????????????? | | ?????# # gg""" #???????????????? | | ?????# # ! """ #???????????????? | | ?????# # =""" #???????????????? | | ?????# ##### # ## #???????????????? | | ????? ??c?????# ?# ###########???????????????? | | ??????????????#???# #?????????????????????????? | | ??????????????????# ###???????????????????????? | | ??????????????????# T"#???????????????????????? | | ??????????????????# ""#???????????????????????? | | ??????????????????# ###???????????????????????? | | ??????????????????# #?????????????????????????? | | ?? ???????????# #???????????????########??? | | ? ######### #???????????????# """ #??? | | ? ] #??????########## ""R" #??? | | ? #??????# # "" " #??? | | ???""" #??????# ""# #??? | | ???" " """"""""" ######## """ ""#! / #??? | | ????"" """ """ # """ ""# !#??? | | ???% [ # """ S###+####??? | | ????=!! # """ ""# #???? | +----------------------------------------------------+ Best States ------------- Heat Dissipation 142 Energy Generation 25 Energy Capacity 840 Matter Stores 300 Matter Capacity 300 Sight Range 22 Robot Scan Range 18 Terrain Scan Range 16 Terrain Scan Density 10 Jamming Range 16 Cloak Strength 2 EM Shielding 4 Corruption Block 20 Armor Coverage 825 Resistance: KI 40 Resistance: TH 30 Resistance: EM 20 Core Shielding 20 Propulsion Shielding 66 Point Defense Rating 240 Evasion (%) 60 Targeting Accuracy 20 Target Analysis 14 Recoil Reduction 4 Matter Filtering 50 Kinecelleration 30 Offensive Hacking 34 Item Schematics ----------------- None Robot Schematics ------------------ None Fabricated ------------ O-24 Administrator | x1 | -7/Factory | Preloaded E-15 Imp | x2 | -5/Factory | Preloaded B-74 Champion | x3 | -3/Research | Preloaded Alien Tech Used ----------------- Integrated Dissipator Terrabomb Sigix Terminator Dimensional Node Initializer Transdimensional Reconstructor Core Reset Matrix Achievements -------------- Alien Roots Main Advantage Maximum Efficiency Ooh, Shiny! Challenges ------------ None Game ------ Seed EtherialEtherialTorch Manual? 0 Play Time 03:53:36 Cumulative 171.2 hours Start 2023.11.14 @ 12:30:51 End 2023.11.14 @ 18:51:26 Sessions 3 Manual Loads 0 Difficulty Rogue Special Mode None Game No. 97 Rogue 97 Adventurer 0 Explorer 0 Win Type - Total 0 Types 0/0/0/0/0/0/0/0/0 Lore% 42 Gallery% 65 Achievement% 52 Wizard Run 0 Options --------- ASCII 0 Keyboard 1 Movement Numpad Keybinds 0 Fullscreen 1 Font 24/Smallcaps Map View 76x50 Tactical HUD 1 Map Filters NONE Filters NONE Steam 1 RUN: 99987f14-120f-465e-bba7-92b9d99189bf